Cogmind - Beta 9.1 @@@ ROGUE MODE // 2019.11.05 @ 06:29:43 Player: zapruda Result: Destroyed by G-47 Trooper with Particle Gun Performance ------------- Evolutions (2) 1000 Regions Visited (5) 1000 Robots Destroyed (23) 115 Value Destroyed (509) 509 Prototype IDs (5) 100 Alien Tech Used (0) 0 Bonus (430) 430 TOTAL SCORE: 3154 Bonus ------- Follower Combat Kills 130 Aligned with FarCom 300 Cogmind --------- Core Integrity 0/550 Matter 285/300 Energy 89/100 System Corruption 4% Temperature Cool (303) Location -8/Materials Parts ------- Power (2) Propulsion (3) Aerolev Unit Utility (4) Modified TNC Melee Analysis Suite Weapon (2) Particle Gun Inventory (4) Aerolev Unit Peak State ------------ Power Light Ion Engine Light Ion Engine Propulsion Improved Hover Unit Improved Hover Unit Aerolev Unit Utility Modified TNC Melee Analysis Suite Actuator Array Medium Armor Plating Weapon Longsword +1 Inventory Light Ion Engine Improved Hover Unit Improved Hover Unit Light Armor Plating [Rating: 32] Favorites ----------- Power Light Ion Engine Engine Light Ion Engine Power Core Light Nuclear Core Propulsion Improved Hover Unit Treads Light Treads Leg Aluminum Leg Hover Unit Improved Hover Unit Flight Unit Flight Unit Utility Actuator Array Device Actuator Array Storage Small Storage Unit Processor Modified TNC Protection Medium Armor Plating Weapon Longsword +1 Energy Gun Heavy EM Pulse Gun Ballistic Gun Assault Rifle Impact Weapon Great Maul Slashing Weapon Longsword +1 Build | -11 -10 -10 -10 -9 -8 ------- Run | Scr Mat Min Exi Min Mat Slots Evolved 4 | . . . . . 4 Power 1 | . . . . . 1 Propulsion 1 | . . . . . 1 Utility 2 | . . . . . 2 Weapon . | . . . . . . Parts Attached 47 | 9 10 3 4 4 17 Power 9 | 1 1 1 1 1 4 Engine 8 | 1 1 1 1 1 3 Core 1 | . . . . . 1 Reactor . | . . . . . . Propulsion 17 | 4 3 . . 3 7 Treads 2 | 2 . . . . . Leg 2 | 2 . . . . . Wheel . | . . . . . . Hover 9 | . 2 . . . 7 Flight 4 | . 1 . . 3 . Utility 10 | 1 2 1 2 . 4 Device 4 | . 2 1 1 . . Storage 1 | 1 . . . . . Processor 2 | . . . 1 . 1 Hackware . | . . . . . . Protection 3 | . . . . . 3 Artifact . | . . . . . . Weapon 11 | 3 4 1 1 . 2 Energy Gun 4 | 1 2 . . . 1 Energy Cannon . | . . . . . . Ballistic Gun 5 | 2 2 . . . 1 Ballistic Cannon . | . . . . . . Launcher . | . . . . . . Special Weapon . | . . . . . . Impact Weapon 1 | . . 1 . . . Slashing Weapon 1 | . . . 1 . . Piercing Weapon . | . . . . . . Special Melee Weapon . | . . . . . . Unidentified Prototypes 5 | . . . 3 . 2 Parts Lost 20 | . . . . 6 14 Power 5 | . . . . 1 4 Propulsion 9 | . . . . 4 5 Utility 3 | . . . . . 3 Weapon 3 | . . . . 1 2 Highest Loss Streak 9 | . . . . 6 9 Average Slot Usage (%) 79 | . 77 90 90 75 74 Engine 13 | . 14 14 14 13 13 Leg 1 | . 17 . . . . Hover 12 | . 7 28 28 4 17 Flight 6 | . 1 . . 11 1 Device 14 | . 2 28 22 14 6 Processor 10 | . . . 5 14 16 Protection 1 | . . . . . 8 Ballistic Gun 1 | . 20 . . . 1 Impact Weapon 4 | . . 8 14 2 . Slashing Weapon 9 | . . . 4 14 6 Naked Turns . | . . . . . . Heaviest Build 24 | 13 12 15 17 17 24 Greatest Support 40 | 40 20 16 16 16 33 Greatest Overweight (x) 5 | . . . 1 4 5 Average Overweight (x) . | . . . . 1 . Largest Inventory Capacity 6 | 6 6 4 4 4 4 Average Capacity 4 | 5 5 4 4 4 4 Most Carried 6 | 6 6 4 4 4 4 Average Carried 2 | 2 4 4 3 2 2 Final Capacity 6 | 6 4 4 4 4 4 Final Carried 4 | 4 4 4 3 4 1 Class Distribution -------------------- 100% | Mutant Dominant Class ---------------- Mutant | -10/Materials Mutant | -10/Mines Mutant | -10/Exiles Mutant | -9/Mines Mutant | -8/Materials Resources | -11 -10 -10 -10 -9 -8 ----------- Run | Scr Mat Min Exi Min Mat Matter Collected 679 | 252 94 22 . 104 207 Remotely . | . . . . . . Salvage Created 839 | . 94 . . 255 490 Parts 41 | . 6 . . 13 22 Haulers Intercepted 2 | . . . . . 2 Recyclers Shooed 1 | . . . . . 1 Parts Field Recycled . | . . . . . . Retrieved Matter . | . . . . . . Parts Self-Destructed . | . . . . . . Prevented . | . . . . . . Kills | -11 -10 -10 -10 -9 -8 ------- Run | Scr Mat Min Exi Min Mat Combat Hostiles Destroyed 15 | . 2 . . 7 6 Melee 11 | . . . . 7 4 Guns 4 | . 2 . . . 2 Classes Destroyed 8 | . 1 . . 4 3 Worker 4 | . . . . 2 2 Hauler 2 | . . . . . 2 Recycler 1 | . . . . 1 . Operator 1 | . . . . . 1 Swarmer 5 | . . . . 5 . Grunt 7 | . 2 . . 1 4 Brawler 1 | . . . . 1 . Sentry 2 | . . . . . 2 Best Kill Streak 5 | . 2 . . 3 5 Combat Bots Only 3 | . 2 . . 3 2 Max Kills in Single Turn 1 | . 1 . . 1 1 Gunslinging . | . . . . . . Exploded . | . . . . . . Melee 1 | . . . . 1 1 Uniques/NPCs Destroyed . | . . . . . . Combat | -11 -10 -10 -10 -9 -8 -------- Run | Scr Mat Min Exi Min Mat Damage Taken 2198 | . 10 73 . 536 1579 Core 785 | . . 43 . 183 559 Absorbed by Shields . | . . . . . . Core Remaining (%) 54 | 100 . . . 9 . Volleys Fired 34 | . 4 . . . 30 Largest 2 | . 2 . . . 2 Hottest 90 | . 90 . . . 90 Shots Fired 43 | . 6 . . . 37 Gun 43 | . 6 . . . 37 Cannon . | . . . . . . Launcher . | . . . . . . Special . | . . . . . . Kinetic 31 | . 2 . . . 29 Thermal 8 | . . . . . 8 Explosive . | . . . . . . Electromagnetic 4 | . 4 . . . . Robot Hit Streak 26 | . 5 . . . 26 Robot Miss Streak 2 | . . . . . 2 Penetration Max . | . . . . . . Secondary Targets . | . . . . . . Shots Hit Robots 80 | . 5 . . 27 48 Core Hits 27 | . 2 . . 11 14 Critical Hits 1 | . . . . . 1 Critical Kills 1 | . . . . . 1 Critical Parts Destroyed . | . . . . . . Melee Attacks 54 | . . . 1 33 20 Impact 4 | . . . 1 3 . Slashing 50 | . . . . 30 20 Piercing . | . . . . . . Sneak Attacks 10 | . . . . 5 5 Combat Hostiles . | . . . . . . Follow-up Attacks 2 | . . . . 2 . Damage Inflicted 3562 | . 64 . . 1548 1950 Guns 605 | . 64 . . . 541 Cannons . | . . . . . . Explosions . | . . . . . . Melee 2957 | . . . . 1548 1409 Ramming . | . . . . . . Kinetic 475 | . 14 . . . 461 Thermal 80 | . . . . . 80 Explosive . | . . . . . . Electromagnetic 50 | . 50 . . . . Impact 50 | . . . . 50 . Slashing 2907 | . . . . 1498 1409 Piercing . | . . . . . . Highest Corruption 4 | . . . . . 4 Average Corruption 4 | . . . . . 4 Corruption Purged . | . . . . . . Effects 4 | . . . . . 4 Heat Flow Errors 1 | . . . . . 1 Data Loss (minor) 1 | . . . . . 1 Targeting Errors 2 | . . . . . 2 Overload Shots . | . . . . . . Overflow Damage 603 | . . . . 325 278 Projectiles . | . . . . . . Explosions . | . . . . . . Melee 603 | . . . . 325 278 Knockbacks . | . . . . . . Impact . | . . . . . . Kinetic . | . . . . . . Secondary . | . . . . . . Self-Inflicted Damage . | . . . . . . Shots . | . . . . . . Rammed . | . . . . . . Targets Rammed . | . . . . . . Kicked . | . . . . . . Crushed . | . . . . . . Highest Temperature 285 | . 72 . . . 285 Average Temperature 93 | . 34 . . . 107 Received Heat Transfer 555 | . 6 . . 27 522 Siege Activations . | . . . . . . Robots Corrupted . | . . . . . . Combat Hostiles . | . . . . . . Parts Fried . | . . . . . . Impact Corruptions . | . . . . . . Robots Melted . | . . . . . . Combat Hostiles . | . . . . . . Parts Melted 1 | . . . . 1 . Heat Transferred 185 | . . . . . 185 Parts Sabotaged . | . . . . . . Parts Stolen . | . . . . . . Parts Stripped . | . . . . . . Power Chain Reactions . | . . . . . . Missiles Intercepted . | . . . . . . Alert | -11 -10 -10 -10 -9 -8 ------- Run | Scr Mat Min Exi Min Mat Peak Influence 195 | . 74 28 . 120 195 Average Influence 48 | . 18 28 . 39 104 Maximum Alert Level . | . . . . . . Low Security (%) 100 | . . . . . . Level 1 . | . . . . . . Level 2 . | . . . . . . Level 3 . | . . . . . . Level 4 . | . . . . . . Level 5 . | . . . . . . High Security . | . . . . . . Max Security . | . . . . . . Squads Dispatched 6 | . 1 . . . 5 Investigation 2 | . 1 . . . 1 Extermination . | . . . . . . Reinforcement 3 | . . . . . 3 Assault . | . . . . . . Garrison 1 | . . . . . 1 Intercept . | . . . . . . Construction Impeded . | . . . . . . Haulers Reinforced . | . . . . . . Stealth | -11 -10 -10 -10 -9 -8 --------- Run | Scr Mat Min Exi Min Mat Distress Signals 3 | . . . . . 3 Communications Jammed . | . . . . . . Distress Signals . | . . . . . . Times Spotted 37 | . 4 . . 11 22 Peak Tracking Total 10 | . 4 . . 5 10 Tactical Retreats 4 | . . . . 3 1 Traps | -11 -10 -10 -10 -9 -8 ------- Run | Scr Mat Min Exi Min Mat Traps Triggered 3 | . 1 1 . . 1 Indirectly . | . . . . . . Trap Hack Attempts . | . . . . . . Triggered . | . . . . . . Disarmed . | . . . . . . Reprogrammed . | . . . . . . Reused . | . . . . . . Traps Extracted . | . . . . . . Installed . | . . . . . . Triggered . | . . . . . . Machines | -11 -10 -10 -10 -9 -8 ---------- Run | Scr Mat Min Exi Min Mat Machines Disabled . | . . . . . . Max in Single Turn . | . . . . . . Machines Sabotaged . | . . . . . . Garrisons Compromised . | . . . . . . Overloaded Fab Kills . | . . . . . . Fab Network Shutdowns . | . . . . . . Hacking | -11 -10 -10 -10 -9 -8 --------- Run | Scr Mat Min Exi Min Mat Machines Accessed 8 | . 2 1 4 . 1 Terminals 3 | . 2 . . . 1 Fabricators . | . . . . . . Repair Stations . | . . . . . . Recycling Units . | . . . . . . Scanalyzers . | . . . . . . Garrison Access . | . . . . . . Total Hacks 62 | . 10 1 48 . 3 Successful 54 | . 3 1 48 . 2 Failed 8 | . 7 . . . 1 Catastrophic 1 | . 1 . . . . Database Lockouts . | . . . . . . Manual 2 | . . . 2 . . Terminals 13 | . 10 . . . 3 Fabricators . | . . . . . . Repair Stations . | . . . . . . Recycling Units . | . . . . . . Scanalyzers . | . . . . . . Garrison Access . | . . . . . . Terminal Hacks 54 | . 3 1 48 . 2 Record 49 | . 1 . 48 . . Open Door 1 | . . 1 . . . Registered Components 1 | . . . . . 1 Registered Prototypes 1 | . 1 . . . . Zone Layout 2 | . 1 . . . 1 Fabricator Hacks . | . . . . . . Repair Station Hacks . | . . . . . . Recycling Unit Hacks . | . . . . . . Scanalyzer . | . . . . . . Garrison Access Hacks . | . . . . . . Unauthorized Hacks . | . . . . . . Terminals . | . . . . . . Fabricators . | . . . . . . Repair Stations . | . . . . . . Recycling Units . | . . . . . . Scanalyzers . | . . . . . . Garrison Access . | . . . . . . Data Cores Recovered . | . . . . . . Used . | . . . . . . Hacking Detections 3 | . 2 . . . 1 Full Trace Events . | . . . . . . Feedback Events . | . . . . . . Feedback Blocked . | . . . . . . Robot Schematics Acquired . | . . . . . . Robots Built . | . . . . . . Matter . | . . . . . . Time . | . . . . . . Total Robot Build Rating . | . . . . . . Part Schematics Acquired . | . . . . . . Parts Built . | . . . . . . Matter . | . . . . . . Time . | . . . . . . Total Part Build Rating . | . . . . . . Parts Repaired . | . . . . . . Time . | . . . . . . Parts Recycled . | . . . . . . Recycled Matter . | . . . . . . Retrieved Matter . | . . . . . . Retrieved Components . | . . . . . . Parts Scanalyzed . | . . . . . . Part Schematics Acquired . | . . . . . . Parts Damaged . | . . . . . . Bothacking | -11 -10 -10 -10 -9 -8 ------------ Run | Scr Mat Min Exi Min Mat Used RIF Installer . | . . . . . . Robots Hacked . | . . . . . . Non-combat . | . . . . . . Combat . | . . . . . . Robot Hacks Applied . | . . . . . . Relay Couplers Released . | . . . . . . Robots Rewired . | . . . . . . Allies Hacked . | . . . . . . Hacks Repelled . | . . . . . . Allies | -11 -10 -10 -10 -9 -8 -------- Run | Scr Mat Min Exi Min Mat Total Allies 3 | . . . . 3 . Largest Group 3 | . . . . 3 3 Highest-Rated Group 40 | . . . . 40 40 Highest-Rated Ally 16 | . . . . 16 16 Total Orders . | . . . . . . Ally Attacks 34 | . . . . 13 21 Total Damage 371 | . . . . 161 210 Kills 4 | . . . . 1 3 Allies Corrupted . | . . . . . . Allies Melted . | . . . . . . Intel | -11 -10 -10 -10 -9 -8 ------- Run | Scr Mat Min Exi Min Mat Robot Analysis Total . | . . . . . . Derelict Logs Recovered 3 | . . 1 . 2 . Drone Launches . | . . . . . . Drone Recoveries . | . . . . . . Exploration | -11 -10 -10 -10 -9 -8 ------------- Run | Scr Mat Min Exi Min Mat Turns Passed 2102 | 79 163 82 427 1012 339 Spaces Moved 1547 | 43 148 135 599 465 157 Core 16 | 8 . . . 1 7 Treads 33 | 33 . . . . . Legs 82 | 2 80 . . . . Wheels . | . . . . . . Hover 982 | . 27 135 599 77 144 Flight 434 | . 41 . . 387 6 Fastest Speed 40 | 50 40 56 56 116 42 Average Speed 109 | 137 86 56 68 187 91 Slowest Speed 440 | 160 120 56 116 360 440 Overloaded Moves . | . . . . . . Propulsion Burnouts . | . . . . . . Robots Hopped . | . . . . . . Cave-ins Triggered . | . . . . . . Exploration Rate (%) 43 | 4 25 28 92 90 21 Regions Visited 5 Branch Regions 3 Pre-discovered Areas 3 | . . 1 1 1 . Known Exits Taken . | . . . . . . Unknown Exits Taken 5 | 1 1 1 1 1 . Scrap Searched 5 | . . 1 . 4 . Spaces Dug 1 | . . . 1 . . Terrain Destroyed 1 | . . . 1 . . Melee 1 | . . . 1 . . Projectile . | . . . . . . AOE . | . . . . . . Actions | -11 -10 -10 -10 -9 -8 --------- Run | Scr Mat Min Exi Min Mat Total 1882 | 64 178 140 612 578 310 Wait 135 | . . . . 69 66 Move 1542 | 42 147 134 598 464 157 Hop . | . . . . . . Pick Up 44 | 10 7 . 5 8 14 Fast Attach 9 | . 6 2 . . 1 Attach 33 | 9 2 . 3 4 15 Detach 4 | 3 . . . . 1 Swap 5 | . 2 1 1 . 1 Drop 25 | . 10 3 4 3 5 Fire 34 | . 4 . . . 30 Melee 51 | . . . 1 30 20 Ram . | . . . . . . Kick . | . . . . . . Crush . | . . . . . . Escape Stasis . | . . . . . . Rewire . | . . . . . . Trap . | . . . . . . Miscellaneous . | . . . . . . Route ------- -11/Scrapyard -10/Materials -10/Mines -10/Exiles (discovered 2 exits: [*Min x2]) -9/Mines (discovered 2 exits: *Mat x2) -8/Materials (discovered 1 exit: Fac) History --------- Turn | Location | Event 6 | -11/Scrapyard | Discovered new exit (range 14) 80 | -11/Scrapyard | Entered Materials 202 | -10/Materials | Discovered new exit (range 16) 243 | -10/Materials | Entered Mines 244 | -10/Mines | Learned location of Storage (-7) 272 | -10/Mines | Met a Derelict who couldn't figure out how to use a Trap Extractor 296 | -10/Mines | Assisted by bots powering up and referring to "LRC-V3" 306 | -10/Mines | Build established: Mutant 312 | -10/Mines | Learned location of 1 exit from Materials 322 | -10/Mines | Deemed a non-threat by the Exiles lab entrance 322 | -10/Mines | Discovered new exit (range 5) 325 | -10/Mines | Entered Exiles 337 | -10/Exiles | Discovered new exit (range 15) 348 | -10/Exiles | Met 8R-AWN 358 | -10/Exiles | Met EX-HEX 388 | -10/Exiles | Met EX-DEC 405 | -10/Exiles | Visited The Gauntlet 489 | -10/Exiles | Learned location of Zion (-7) 505 | -10/Exiles | Discovered new exit (range 14) 554 | -10/Exiles | Met EX-BIN 568 | -10/Exiles | Aligned with FarCom system 569 | -10/Exiles | Given EX-Vault access code 587 | -10/Exiles | Opened EX-Vault 592 | -10/Exiles | Found Prototype Device 593 | -10/Exiles | Identified Chronowheel 593 | -10/Exiles | Activated Chronowheel 596 | -10/Exiles | Found Prototype Processor 597 | -10/Exiles | Identified Modified TNC 601 | -10/Exiles | Found Prototype Slashing Weapon 602 | -10/Exiles | Identified Longsword +1 641 | -10/Exiles | Warned to stay clear of 0b10 Research branches 752 | -10/Exiles | Stole two prototypes: Modified TNC, Longsword +1 752 | -10/Exiles | Entered Mines 893 | -9/Mines | Core integrity fell below 50% 928 | -9/Mines | Core integrity fell below 20% 971 | -9/Mines | Lost 6 parts (1p4n1w) 1466 | -9/Mines | Discovered new exit (range 8) 1496 | -9/Mines | Assisted by bots powering up and referring to "LRC-V3" 1533 | -9/Mines | Received a Rocket Launcher from a helpful Derelict 1720 | -9/Mines | Discovered new exit (range 10) 1764 | -9/Mines | Entered Materials 1764 | -8/Materials | Accompanied by 3 allies 1764 | -8/Materials | Evolved 4 slots: Power x1, Propulsion x1, Utility x2 1765 | -8/Materials | Identified exit to Factory 2040 | -8/Materials | Core integrity fell below 50% 2071 | -8/Materials | Lost 9 parts (3p2n3u1w) 2072 | -8/Materials | Core integrity fell below 20% 2100 | -8/Materials | Garrison activated, responded to threat 2103 | -8/Materials | Destroyed by G-47 Trooper with Particle Gun Last Messages --------------- Slug penetrates Wall. Acquired Lgt. Nuclear Core. Slug penetrates Wall. G-47 Trooper destroyed. Slug penetrates Wall. Acquired 58 matter. Acquired Particle Gun. W-25 Informer sends out distress signal. Penetrated by Slug. R-06 Scavenger collects Aluminum Leg. Acquired 44 matter. Slug penetrates Wall. Aerolev Unit destroyed. Lgt. Nuclear Core destroyed. Slug penetrates Wall. G-47 Trooper calls for garrison reinforcements. ALERT: Activating Garrison Access M001. Enh. Autogun destroyed. Slug penetrates Wall. Aerolev Unit destroyed. Map ----- +----------------------------------------------------+ | ?????????????????????????????????????????????????? | | ?????????????????????????????????????????????????? | | ?????????????????????????????????????????????????? | | ?????????????????????????????????????????????????? | | ?????????????????????????????????????????????????? | | ?????????????????????????????????????????????????? | | ??????????????????????????????????a??????????????? | | ?????????????????????????????????????????????????? | | ?????????????????????????????????????????????????? | | ?????????????????????????????????????????????????? | | ??????????????????#??????????????????????????????? | | ??????????????????# ???????????Y????????????????? | | ??????????????????# ???????????????????????????? | | ?????????g????????# ??????????Y????????????????? | | ??????????????????# ???????????????????????????? | | ??????????????????# #??????????????????????????? | | ??????????????????# ??????????????????????????? | | ??????????????????+ ??????????????????????????? | | ??????????????????# ??????????????????????????? | | ???????? ???????# #??????????????????????????? | | ???????? #??????# ############???????????????? | | ???????# #??????# ## ????????????????? | | ???????#w #?????## ## """ ???????????????? | | ???????# #?????# =# """"" ???????????????? | | ?????#?# #?????# %#! " """ ????????????????? | | ????? ?# #?????# /g@*"""" ??????????????? | | ?????? # #?????# h#g =""" #?????????????? | | ?????? # #?????# # = #?????????????? | | ???????+ #?????## % ##############?????????????? | | ???????# #??????# # ???????????????????????? | | ???????# #??????# # !????????????????????????? | | ???????# #??????# + ?????????????????????????? | | ???????# #??????# # ????????????????????????? | | ??????## ######## ####???????????????????????? | | ??????# #??????????????????????????? | | #######% = #??????????????????????????? | | a % % = w#??????????????????????????? | | [%*= # #???????????????????? | | !%=%[ + [! #???????????????????? | | #########+######### # [! #???????????????????? | | ??????????????????# # #???????????????????? | | ??????????????????#^ #?###+##???????????????????? | | ??????????????????# ??????????????????????????? | | ??????????????????# ?????????????????????????? | | ??????????????????# ????????????????????????? | | ??????????????????####+###???????????????????????? | | ?????????????????????????????????????????????????? | | ?????????????????????????????????????????????????? | | ?????????????????????????????????????????????????? | | ?????????????????????????????????????????????????? | +----------------------------------------------------+ Best States ------------- Heat Dissipation 45 Energy Generation 15 Energy Capacity 250 Matter Stores 300 Matter Capacity 300 Sight Range 16 Terrain Scan Density 10 Armor Coverage 375 Evasion (%) 62 Melee Accuracy 5 Recoil Reduction 2 Item Schematics ----------------- None Robot Schematics ------------------ None Fabricated ------------ Nothing Alien Tech Used ----------------- None Achievements -------------- Close Call Librarian Challenges ------------ None Game ------ Seed IntegrationMiniPenetrator Manual? 0 Play Time 00:27:09 Cumulative 7.3 hours Start 2019.11.05 @ 06:04:52 End 2019.11.05 @ 06:29:43 Sessions 1 Manual Loads 0 Difficulty Rogue Special Mode None Game No. 16 Rogue 16 Adventurer 0 Explorer 0 Win Type - Total 0 Types 0/0/0/0/0/0/0 Lore% 13 Gallery% 17 Achievement% 11 Wizard Run 0 Options --------- ASCII 0 Keyboard 0 Movement Mouse Keybinds 0 Fullscreen 1 Font 18/SmallcapsGlow Map View 76x50 Tactical HUD 0 Map Filters NONE Filters NONE Steam 1 RUN: 30fbbc7a-d09d-4e07-9d22-835e6c2f3a2c